fUST/lending_fUST_20240928
["ID","MTS","AMOUNT","RATE_DAILY","PERIOD"]
[339361329,1727472639174,-2500.0,0.00021998,2]
[339361330,1727472639183,-302.42545213,0.00022,2]
[339361331,1727472639192,-302.42545213,0.00022,2]
[339361332,1727472639202,-150.0,0.00022043,2]
[339361333,1727472639211,-525.0,0.00022043,2]
[339361334,1727472639222,-961.6,0.00022191,2]
[339361335,1727472639232,-302.42545213,0.0002222,2]
[339361336,1727472639245,-302.42545213,0.0002222,2]
[339361337,1727472639254,-302.42545213,0.0002244,2]
[339361338,1727472639263,-302.42545213,0.0002244,2]
[339361339,1727472639274,-961.6,0.00022465,2]
[339361340,1727472639284,-302.42545213,0.0002266,2]
[339361341,1727472639294,-302.42545213,0.0002266,2]
[339361342,1727472639306,-961.6,0.00022739,2]
[339361343,1727472639316,-587.0,0.00022763,2]
[339361344,1727472639326,-200.0,0.00022829,3]
[339361345,1727472639336,-200.0,0.00022838,3]
[339361346,1727472639346,-302.42545213,0.0002288,2]
[339361347,1727472639357,-302.42545213,0.0002288,2]
[339361348,1727472639367,-2000.0,0.00023,2]
[339361349,1727472639376,-307.3851242,0.00023,2]
[339361350,1727472639386,-961.6,0.00023013,2]
[339361351,1727472639397,-453.63817819,0.000231,4]
[339361352,1727472639407,-453.63817819,0.000231,4]
[339361353,1727472639417,-961.6,0.00023287,2]
[339361354,1727472639429,-453.63817819,0.0002332,4]
[339361355,1727472639439,-453.63817819,0.0002332,4]
[339361356,1727472639584,-453.63817819,0.0002354,4]
[339361357,1727472639595,-453.63817819,0.0002354,4]
[339361358,1727472639607,-961.6,0.00023561,2]
[339361359,1727472639617,-152.79482226,0.0002375,2]
[339361360,1727472639627,-453.63817819,0.0002376,4]
[339361361,1727472639637,-453.63817819,0.0002376,4]
[339361362,1727472639648,-500.0,0.00023834,2]
[339361363,1727472639659,-961.6,0.00023835,2]
[339361364,1727472639670,-1000.0,0.00023918,2]
[339361365,1727472639679,-453.63817819,0.0002398,4]
[339361366,1727472639690,-453.63817819,0.0002398,4]
[339361367,1727472639700,-3200.0,0.00024038,2]
[339361368,1727472639710,-300.0,0.00024038,2]
[339361369,1727472639722,-150.0,0.00024038,2]
[339361370,1727472639734,-961.6,0.00024109,2]
[339361371,1727472639745,-961.6,0.00024383,2]
[339361372,1727472639755,-961.6,0.00024657,2]
[339361373,1727472639767,-660.0,0.00024658,2]
[339361374,1727472639778,-380.0,0.00024658,2]
[339361375,1727472639789,-823.0,0.00024808,2]
[339361376,1727472639799,-961.6,0.00024931,2]
[339361377,1727472639808,-1000.0,0.00025,7]
[339361378,1727472639819,-150.0,0.00025,2]
[339361379,1727472639829,-151.0,0.00025,7]
[339361380,1727472639839,-151.049112,0.00025,7]
[339361381,1727472639851,-410.0,0.00025,2]
[339361382,1727472639861,-525.0,0.00025043,2]
[339361383,1727472639871,-500.0,0.00025119,2]
[339361384,1727472639881,-961.6,0.00025205,2]
[339361385,1727472639894,-961.82905877,0.00025479,2]
[339361386,1727472639905,-410.0,0.00025646,2]
[339361387,1727472639917,-153.0,0.00026418,2]
[339361388,1727472639928,-153.0,0.00026418,2]
[339361389,1727472639937,-153.0,0.00026418,2]
[339361390,1727472639948,-153.0,0.00026418,2]
[339361391,1727472639959,-153.0,0.00026418,2]
[339361392,1727472639968,-153.0,0.00026418,2]
[339361393,1727472639978,-153.0,0.00026418,2]
[339361394,1727472639989,-153.0,0.00026418,2]
[339361395,1727472640001,-153.0,0.00026418,2]
[339361396,1727472640012,-153.0,0.00026418,2]
[339361397,1727472640022,-410.0,0.00026641,2]
[339361398,1727472640031,-295.42523088,0.00027025,2]
[339361399,1727472640041,-6440.70787669,0.00027026,3]
[339361402,1727472640635,-1217.0,0.00022043,2]
[339361403,1727472640646,-500.0,0.00025,7]
[339361404,1727472640658,-1217.0,0.00025043,2]
[339361405,1727472640670,-13268.48620491,0.00027016,3]
[339361406,1727472640694,-8275.57258154,0.00027016,3]
[339361417,1727472643481,-300.0,0.00027016,2]
[339361418,1727472643490,-37790.72121355,0.00027016,3]
[339361419,1727472643500,-64761.03212331,0.00027026,3]
[339361420,1727472643509,-240.87,0.00027027,3]
[339361421,1727472643518,-1152.0,0.00027036,2]
[339361422,1727472643530,-416.0,0.00027973,2]
[339361423,1727472643539,-193.08274716,0.0002829,19]
[339361424,1727472643549,-820.214,0.0002829,19]
[339361425,1727472643558,-500.0,0.00029314,2]
[339361426,1727472643567,-2175.76460293,0.00029456,4]
[339361427,1727472643578,-97266.2554396,0.00029456,4]
[339361428,1727472643587,-1613.0,0.00029464,2]
[339361429,1727472643598,-410.0,0.00029838,2]
[339361430,1727472643613,-1153.04876435,0.0003,3]
[339361431,1727472643623,-263.0,0.0003,2]
[339361432,1727472643634,-150.112233,0.000301,5]
[339361433,1727472643645,-960.75,0.000305,7]
[339361434,1727472643656,-150.112233,0.000313,9]
[339361435,1727472643666,-500.0,0.00031334,2]
[339361436,1727472643676,-410.0,0.00031703,2]
[339361437,1727472643687,-410.0,0.00031969,2]
[339361438,1727472643698,-2258.0,0.00032111,2]
[339361439,1727472643708,-150.112233,0.000325,10]
[339361440,1727472643719,-500.0,0.00032876,30]
[339361441,1727472643730,-263.0,0.00033,2]
[339361442,1727472643741,-263.0,0.00033,2]
[339361443,1727472643752,-500.0,0.00033424,31]
[339361444,1727472643761,-410.0,0.00033567,2]
[339361445,1727472643771,-150.112233,0.000338,5]
[339361446,1727472643781,-500.0,0.00033972,32]
[339361447,1727472643791,-150.0,0.00034399,14]
[339361448,1727472643801,-150.0,0.00034399,14]
[339361449,1727472643811,-200.0,0.00034399,14]
[339361450,1727472643822,-15864.77297632,0.00034399,7]
[339361451,1727472643831,-167773.60446813,0.00034399,5]
[339361452,1727472643849,-150.0,0.00027397,5]
[339361453,1727472643861,-300.82868338,0.00034399,5]
[339361473,1727472646486,-500.0,0.00025,7]
[339361474,1727472646495,-23849.29159987,0.00034399,5]
[339361475,1727472646506,-5482.13265781,0.00034399,5]
[339361476,1727472646517,-3000.0,0.00034399,115]
[339361477,1727472646526,-150.0,0.00034399,7]
[339361478,1727472646537,-500.0,0.0003452,33]
[339361479,1727472646547,-500.0,0.00034793,2]
[339361480,1727472646557,-3118.0,0.00034995,2]
[339361481,1727472646566,-150.112233,0.00035,7]
[339361482,1727472646577,-500.0,0.00035068,34]
[339361483,1727472646587,-2175.76460293,0.00035606,5]
[339361484,1727472646597,-562.2825424,0.00035606,5]
[339361501,1727473534152,-500.0,0.00018904,2]
[339361502,1727473534182,-139.87664878,0.00018999,2]
[339361503,1727473557111,-160.12335122,0.00018999,2]
[339361504,1727473557135,-225.90879203,0.00019,2]
[339361506,1727473630169,-500.0,0.00018904,2]
[339361507,1727473630191,-774.09120797,0.00019,2]
[339361508,1727473630217,-1000.0,0.00019,2]
[339361509,1727473630239,-1000.0,0.00019,2]
[339361510,1727473630262,-207.0,0.00019,2]
[339361511,1727473630284,-1000.0,0.00019,2]
[339361512,1727473630304,-1000.0,0.00019,2]
[339361513,1727473630324,-723.0,0.00019,2]
[339361514,1727473630345,-500.0,0.00019,2]
[339361515,1727473630366,-437.94346848,0.00019,2]
[339361516,1727473645098,-62.88931999,0.00019,2]
[339361517,1727473645125,-161.10536641,0.000207,2]
[339361551,1727473831621,-176.04,0.000207,2]
[339361552,1727473831630,-297.79415027,0.00022,2]
[339361553,1727473831676,-0.33243139,0.00022,2]
[339361554,1727473831686,-228.24824247,0.000249,2]
[339361555,1727473831695,-500.0,0.00025,7]
[339361556,1727473831704,-500.0,0.00025119,2]
[339361557,1727473831713,-152.8854651,0.00025371,2]
[339361603,1727473837906,-500.0,0.00025,7]
[339361605,1727473837916,-129.8745349,0.00025371,2]
[339361607,1727473837926,-301.1,0.00025371,2]
[339361608,1727473837935,-150.0,0.00025371,2]
[339361610,1727473837945,-1712.5848736,0.00025371,2]
[339361644,1727473839902,-500.0,0.00025,7]
[339361645,1727473839912,-1487.4151264,0.00025371,2]
[339361646,1727473839921,-131.4740754,0.00026269,2]
[339361664,1727473845727,-500.0,0.00025,7]
[339361665,1727473845737,-21.32074686,0.00026269,2]
[339361666,1727473845748,-150.0,0.00026269,2]
[339361667,1727473845758,-136.72397939,0.00028722,2]
[339361668,1727473845782,-22.84289661,0.00028722,2]
[339361669,1727473845791,-380.0,0.00029179,2]
[339361670,1727473845801,-308.37158701,0.00029467,2]
[339361682,1727474741203,-459.72775214,0.00018904,2]
[339361683,1727474753096,-17.90511286,0.00018904,2]
[339361684,1727474753120,-731.96990988,0.0001899,2]
[339361685,1727474833131,-618.99584466,0.00018961,2]
[339361728,1727475031969,-611.66365624,0.00018961,2]
[339361730,1727475031978,-378.41330302,0.0001899,2]
[339361732,1727475031988,-166.098802,0.00019109,2]
[339361733,1727475031998,-208.2131265,0.0001988,2]
[339361735,1727475032007,-167.49093764,0.0001988,2]
[339361738,1727475032016,-631.83,0.0001997,3]
[339361741,1727475032026,-300.0,0.00019979,2]
[339361743,1727475032036,-259.0304126,0.00019979,2]
[339361777,1727475038185,-40.9695874,0.00019979,2]
[339361779,1727475038195,-206.79766162,0.00019979,2]
[339361780,1727475038204,-24352.20143287,0.0001998,2]
[339361782,1727475038213,-207.2001964,0.0001998,2]
[339361784,1727475038225,-60929.67007392,0.0001998,2]
[339361786,1727475038234,-20248.83989575,0.0001998,3]
[339361788,1727475038246,-2116.14531724,0.0001998,3]
[339361814,1727475039988,-2542.45064415,0.0001998,3]
[339361817,1727475040049,-24644.39745556,0.0001998,3]
[339361833,1727475040199,-92413.1440811,0.0001998,3]
[339361835,1727475040212,-39274.30639113,0.0001999,3]
[339361869,1727475043304,-933.4792192,0.0001999,3]
[339361880,1727475046091,-953.012298,0.0001999,3]
[339361881,1727475046148,-1022.12551638,0.0001999,3]
[339361882,1727475046160,-7368.90988799,0.0001999,3]
[339361883,1727475046170,-8891.01573687,0.0001999,3]
[339361892,1727475237065,7913.72,0.00014112,2]
[339361912,1727475945191,-185.465549,0.00018057,2]
[339361913,1727475945213,-203.0561925,0.0001852,2]
[339361914,1727475945237,-165.814868,0.00018581,2]
[339361915,1727475945259,-22.0414919,0.00018597,2]
[339361916,1727475949090,-276.0968701,0.00018597,2]
[339361917,1727475949113,-500.0,0.00018904,2]
[339361918,1727475949136,-13.15046638,0.00019178,2]
[339361920,1727476026165,-146.41640962,0.00019178,2]
[339361921,1727476026186,-280.03462981,0.00019425,2]
[339361922,1727476028130,-3914.10446459,0.00019425,2]
[339361923,1727476028154,-4194.13909441,0.00019512,2]
[339361924,1727476028179,-165.814868,0.0001955,2]
[339361925,1727476028205,-150.0,0.00019578,2]
[339361926,1727476028227,-500.0,0.0001998,2]
[339361927,1727476028249,-500.0,0.0001998,2]
[339361928,1727476028272,-502.6188564,0.0001998,2]
[339361929,1727476028293,-501.83840042,0.0001998,2]
[339361930,1727476028315,-503.98889023,0.0001998,2]
[339361931,1727476028336,-506.72316098,0.0001998,2]
[339361932,1727476028358,-502.65573626,0.0001998,2]
[339361933,1727476028379,-500.0,0.0001998,2]
[339361934,1727476028400,-554.31378775,0.0001998,2]
[339361935,1727476028422,-500.0,0.0001998,2]
[339361936,1727476028445,-513.06137565,0.00019999,2]
[339361937,1727476028467,-19515.01367038,0.0002,2]
[339361938,1727476037131,-502.30305245,0.0001998,2]
[339361939,1727476037153,-506.78731645,0.0001998,2]
[339361940,1727476037176,-508.86443732,0.0001998,2]
[339361941,1727476037198,-500.0,0.0001998,2]
[339361942,1727476037220,-500.0,0.0001998,2]
[339361943,1727476037242,-500.0,0.0001998,2]
[339361944,1727476037264,-510.19479574,0.0001998,2]
[339361945,1727476037285,-30484.98632962,0.0002,2]
[339361946,1727476037308,-158.43,0.00021,2]
[339361947,1727476037331,-465.02016119,0.00021829,2]
[339361948,1727476037355,-500.0,0.00021917,2]
[339361949,1727476037376,-317.0289516,0.00024658,2]
[339361950,1727476037399,-500.0,0.00025,7]
[339361951,1727476037424,-500.0,0.00025119,2]
[339361952,1727476037445,-291.24,0.00025371,2]
[339361953,1727476037466,-3219.713,0.00025371,2]
[339361954,1727476037487,-152.79482226,0.00026269,2]
[339361955,1727476037509,-178.4630332,0.00026305,2]
[339361956,1727476037531,-153.0,0.00026509,2]
[339361957,1727476037559,-500.0,0.00027397,2]
[339361958,1727476037580,-656.171,0.00028195,19]
[339361959,1727476037602,-159.566876,0.0002831,2]
[339361960,1727476037624,-212.59373577,0.0002895,2]
[339361961,1727476037647,-49445.65,0.0002904,3]
[339361962,1727476037670,-47103.9166979,0.0002905,4]
[339361963,1727476037691,-12826.1785616,0.0002905,4]
[339361964,1727476037712,-94168.47498681,0.0002905,4]
[339361965,1727476052146,-500.0,0.0001998,2]
[339361966,1727476052168,-500.0,0.0001998,2]
[339361967,1727476052190,-500.0,0.0001998,2]
[339361968,1727476052211,-500.0,0.0001998,2]
[339361969,1727476052232,-517.85197249,0.0001998,2]
[339361970,1727476052256,-522.83889569,0.0001998,2]
[339361971,1727476052276,-136.39057615,0.0001998,2]
[339361980,1727476148668,-611.00373278,0.000188,2]
[339361981,1727476148695,-500.0,0.00018904,2]
[339361982,1727476148720,-214.0,0.000195,10]
[339361983,1727476148743,-363.60942385,0.0001998,2]
[339361984,1727476148769,-300.25769185,0.0001998,2]
[339361985,1727476148798,-500.0,0.0001998,2]
[339361986,1727476148822,-500.0,0.0001998,2]
[339361987,1727476148846,-500.0,0.0001998,2]
[339361988,1727476148871,-502.46784363,0.0001998,2]
[339361989,1727476148895,-500.0,0.0001998,2]
[339361990,1727476148919,-500.0,0.0001998,2]
[339361991,1727476148943,-503.00449786,0.0001998,2]
[339361992,1727476148972,-523.29652367,0.00019999,2]
[339361993,1727476149003,-500.0,0.00019999,2]
[339361994,1727476152628,94.10849722,0.00019999,2]
[339362069,1727476238682,-405.89150278,0.00019999,2]
[339362070,1727476238692,-500.0,0.00019999,2]
[339362071,1727476238701,-500.0,0.00025,7]
[339362072,1727476238710,-500.0,0.00025119,2]
[339362073,1727476238720,-168.1092316,0.00026525,2]
[339362074,1727476238729,-151.0,0.0002905,7]
[339362075,1727476238739,-151.0,0.0002906,7]
[339362076,1727476238750,-151.0,0.0002906,7]
[339362077,1727476238759,-151.0,0.0002906,7]
[339362078,1727476238769,-151.0,0.0002906,7]
[339362079,1727476238778,-151.0,0.0002906,7]
[339362080,1727476238788,-151.852091,0.0002906,7]
[339362081,1727476238798,-151.0,0.0002906,7]
[339362082,1727476238807,-151.0,0.0002906,7]
[339362083,1727476238816,-151.0,0.0002906,7]
[339362084,1727476238830,-151.0,0.0002907,7]
[339362085,1727476238840,-151.0,0.0002907,7]
[339362086,1727476238849,-151.0,0.0002907,7]
[339362087,1727476238859,-16630.55204797,0.00029311,3]
[339362097,1727476240257,-308.0,0.00025,7]
[339362098,1727476240267,-3895.26660101,0.00029311,3]
[339362099,1727476240279,-5108.72389579,0.00029311,3]
[339362100,1727476240290,-15570.16745523,0.00029311,3]
[339362101,1727476240300,-4719.91481915,0.00029311,3]
[339362137,1727476246220,-167.49093758,0.00029211,2]
[339362138,1727476246232,-29617.34518085,0.00029311,3]
[339362139,1727476246241,-28614.38,0.00029311,3]
[339362140,1727476246252,-23845.32,0.00029311,3]
[339362141,1727476246262,-40040.2971137,0.00029321,4]
[339362142,1727476246272,-87347.9360902,0.00029321,4]
[339362143,1727476246281,-151.0,0.0002934,2]
[339362144,1727476246291,-151.0,0.00029341,2]
[339362145,1727476246300,-151.0,0.0002935,7]
[339362146,1727476246309,-151.0,0.0002935,7]
[339362147,1727476246320,-151.0,0.0002935,7]
[339362148,1727476246330,-151.0,0.0002935,7]
[339362149,1727476246340,-201.369229,0.0002935,7]
[339362150,1727476246349,-151.0,0.0002935,7]
[339362151,1727476246359,-151.0,0.0002935,7]
[339362152,1727476246369,-240.04013,0.0002935,7]
[339362153,1727476246378,-192.17463,0.0002935,7]
[339362154,1727476246388,-31301.41289271,0.0002935,4]
[339362155,1727476246462,-353.00904937,0.0002935,4]
[339362171,1727477146279,-477.19408,0.00018904,2]
[339362172,1727477146303,-315.31963755,0.0002,2]
[339362173,1727477151110,-547.09600907,0.0002,2]
[339362176,1727477244104,-393.21816321,0.00018904,2]
[339362177,1727477254114,-81.78183679,0.00018904,2]
[339362178,1727477254136,-645.77651721,0.0002,2]
[339362179,1727477254159,-205.31,0.000211,2]
[339362180,1727477254180,-1186.28498668,0.00022008,2]
[339362182,1727477353251,-1313.71501332,0.00022008,2]
[339362183,1727477353274,-2500.0,0.00022017,2]
[339362184,1727477353296,-2500.0,0.00022025,2]
[339362185,1727477353318,-2500.0,0.00022034,2]
[339362186,1727477353340,-300.0,0.00022042,2]
[339362187,1727477353362,-2500.0,0.00022043,2]
[339362188,1727477353384,-166.0176967,0.0002375,7]
[339362191,1727477405976,30.21819877,0.00022043,2]
[339362205,1727477432450,-1390.84235969,0.00022034,2]
[339362227,1727477440323,-1109.15764031,0.00022034,2]
[339362228,1727477440334,-2469.78180123,0.00022043,2]
[339362229,1727477440343,-214.598977,0.00024487,2]
[339362230,1727477440353,-298.138363,0.00024507,2]
[339362231,1727477440363,-167.120027,0.00024848,2]
[339362232,1727477440372,-500.0,0.00025,7]
[339362233,1727477440382,-475.0,0.00025119,2]
[339362234,1727477440392,-167.120027,0.0002528,2]
[339362235,1727477440401,-525.0,0.00025348,2]
[339362236,1727477440411,-150.0,0.00025348,2]
[339362237,1727477440420,-1217.0,0.00025348,2]
[339362238,1727477440429,-150.0,0.00025348,2]
[339362239,1727477440438,-150.0,0.00025348,2]
[339362241,1727477440447,-167.120027,0.00025711,2]
[339362242,1727477440457,-167.120027,0.00026143,2]
[339362243,1727477440466,-500.0,0.00026488,2]
[339362244,1727477440475,-300.0,0.00026488,2]
[339362245,1727477440491,-256.72957192,0.00026488,2]
[339362246,1727477440500,-6385.505,0.00026489,2]
[339362247,1727477440509,-153.0,0.00026594,2]
[339362248,1727477440519,-152.79482225,0.00028264,2]
[339362249,1727477440528,-556.634,0.00028264,19]
[339362250,1727477440537,-420.0,0.00028652,2]
[339362251,1727477440546,-647.63205847,0.00029049,2]
[339362252,1727477440555,-500.0,0.00029049,2]
[339362253,1727477440565,-496.31801106,0.00029049,2]
[339362254,1727477440574,-506.99379314,0.0002905,2]
[339362255,1727477440583,-500.0,0.0002905,2]
[339362256,1727477440593,-500.0,0.0002905,2]
[339362257,1727477440602,-506.81527205,0.0002905,2]
[339362258,1727477440611,-508.71907042,0.0002905,2]
[339362259,1727477440620,-500.0,0.0002905,2]
[339362260,1727477440630,-505.75552311,0.0002905,2]
[339362261,1727477440639,-282.32867772,0.00029114,2]
[339362262,1727477440649,-415.56296687,0.00029114,2]
[339362263,1727477440658,-6638.33610057,0.00029115,2]
[339362264,1727477440668,-493.077642,0.000292,2]
[339362265,1727477440678,-531.08333799,0.00029299,2]
[339362266,1727477440687,-500.0,0.00029299,2]
[339362267,1727477440696,-500.0,0.00029299,2]
[339362268,1727477440706,-500.0,0.00029299,2]
[339362269,1727477440715,-500.0,0.00029299,2]
[339362270,1727477440724,-374.04901473,0.00029299,2]
[339362271,1727477440736,-406.8697545,0.00029299,2]
[339362272,1727477440746,-150.112233,0.000293,5]
[339362273,1727477440755,-500.0,0.000293,2]
[339362274,1727477440765,-500.0,0.000293,2]
[339362275,1727477440774,-150.112233,0.000293,8]
[339362276,1727477440784,-287.692552,0.000293,7]
[339362277,1727477440794,-150.0,0.000293,2]
[339362278,1727477440803,-184.0,0.000293,2]
[339362279,1727477440812,-19871.1,0.000293,3]
[339362280,1727477440821,-16559.25,0.000293,3]
[339362281,1727477440831,-999.29961347,0.00029309,2]
[339362282,1727477440989,-545.35689638,0.00029309,2]
[339362283,1727477440999,-55226.19486393,0.0002931,2]
[339362284,1727477441008,-17086.93331862,0.0002931,2]
[339362285,1727477441017,-4694.61980962,0.0002931,4]
[339362286,1727477441027,-165961.078571,0.0002931,4]
[339362287,1727477441037,-23473.0990481,0.00029311,4]
[339362288,1727477441046,-331922.157142,0.00029311,4]
[339362289,1727477441056,-500.0,0.0002932,2]
[339362290,1727477441066,-151.0,0.0002932,7]
[339362291,1727477441076,-151.0,0.0002932,7]
[339362292,1727477441086,-151.0,0.00029321,7]
[339362293,1727477441096,-151.0,0.00029321,7]
[339362294,1727477441106,-267.553827,0.00029321,7]
[339362295,1727477441118,-157.632964,0.00029321,7]
[339362296,1727477441129,-157.632964,0.00029321,7]
[339362297,1727477441139,-157.632964,0.00029321,7]
[339362298,1727477441150,-157.632964,0.00029321,7]
[339362299,1727477441160,-151.0,0.00029321,7]
[339362300,1727477441170,-187.534772,0.00029321,7]
[339362301,1727477441180,-2347.30990481,0.0002933,4]
[339362302,1727477441190,-4694.61980962,0.0002933,4]
[339362303,1727477441201,-4694.61980962,0.00029331,4]
[339362304,1727477441210,-2017.013358,0.0002934,2]
[339362305,1727477441220,-151.0,0.0002934,7]
[339362306,1727477441232,-160.536182,0.0002934,7]
[339362307,1727477441248,-151.0,0.0002934,7]
[339362308,1727477441258,-151.0,0.0002934,7]
[339362309,1727477441269,-151.0,0.0002934,7]
[339362310,1727477441280,-151.0,0.0002934,7]
[339362311,1727477441290,-151.0,0.0002934,7]
[339362312,1727477441301,-151.0,0.0002934,7]
[339362313,1727477441312,-164.199017,0.0002934,7]
[339362314,1727477441322,-164.199017,0.0002934,7]
[339362315,1727477441334,-151.0,0.0002934,7]
[339362316,1727477441346,-151.0,0.0002934,7]
[339362317,1727477441356,-151.0,0.0002934,7]
[339362318,1727477441367,-157.632964,0.0002934,7]
[339362319,1727477441377,-157.632964,0.0002934,7]
[339362320,1727477441387,-2347.30990481,0.0002934,4]
[339362321,1727477441396,-151.0,0.00029341,7]
[339362322,1727477441407,-157.101014,0.00029341,7]
[339362323,1727477441416,-151.0,0.00029341,7]
[339362324,1727477441425,-164.199017,0.00029341,7]
[339362325,1727477441436,-164.199017,0.00029341,7]
[339362326,1727477441446,-151.0,0.00029341,7]
[339362327,1727477441456,-284.457366,0.00029341,7]
[339362328,1727477441466,-157.632964,0.00029341,7]
[339362329,1727477441476,-157.632964,0.00029341,7]
[339362330,1727477441486,-500.0,0.0002935,4]
[339362331,1727477441495,-500.0,0.0002935,4]
[339362332,1727477441505,-500.0,0.0002935,4]
[339362333,1727477441515,-500.0,0.0002935,4]
[339362334,1727477441524,-500.0,0.0002935,4]
[339362335,1727477441533,-500.0,0.0002935,4]
[339362336,1727477441542,-503.2073236,0.0002935,4]
[339362337,1727477441552,-157.412191,0.0002935,7]
[339362338,1727477441562,-157.412191,0.0002935,7]
[339362339,1727477441572,-157.412191,0.0002935,7]
[339362340,1727477441582,-157.412191,0.0002935,7]
[339362341,1727477441593,-157.412191,0.0002935,7]
[339362342,1727477441604,-157.412191,0.0002935,7]
[339362343,1727477441615,-157.412191,0.0002935,7]
[339362344,1727477441625,-157.412191,0.0002935,7]
[339362345,1727477441634,-157.412191,0.0002935,7]
[339362346,1727477441644,-157.412191,0.0002935,7]
[339362347,1727477441655,-157.412191,0.0002935,7]
[339362348,1727477441666,-157.412191,0.0002935,7]
[339362349,1727477441677,-151.0,0.0002935,7]
[339362350,1727477441689,-151.0,0.0002935,7]
[339362351,1727477441700,-227.443792,0.0002935,7]
[339362352,1727477441709,-151.0,0.0002935,7]
[339362353,1727477441720,-151.0,0.0002935,7]
[339362354,1727477441730,-177.262078,0.0002935,7]
[339362355,1727477441739,-151.0,0.0002935,7]
[339362356,1727477441752,-151.0,0.0002935,7]
[339362357,1727477441763,-151.0,0.0002935,7]
[339362358,1727477441772,-151.0,0.0002935,7]
[339362359,1727477441781,-151.0,0.0002935,7]
[339362360,1727477441791,-151.0,0.0002935,7]
[339362361,1727477441800,-151.0,0.0002935,7]
[339362362,1727477441811,-151.0,0.0002935,7]
[339362363,1727477441820,-151.0,0.0002935,7]
[339362364,1727477441829,-151.0,0.0002935,7]
[339362365,1727477441838,-242.186515,0.0002935,7]
[339362366,1727477441847,-151.0,0.0002935,7]
[339362367,1727477441856,-151.0,0.0002935,7]
[339362368,1727477441865,-151.0,0.0002935,7]
[339362369,1727477441874,-151.0,0.0002935,7]
[339362370,1727477441883,-151.0,0.0002935,7]
[339362371,1727477441892,-219.829086,0.0002935,7]
[339362372,1727477441902,-151.0,0.0002935,2]
[339362373,1727477441912,-151.0,0.0002935,2]
[339362374,1727477441921,-151.0,0.0002935,2]
[339362375,1727477441930,-151.0,0.0002935,2]
[339362376,1727477441940,-151.0,0.0002935,2]
[339362377,1727477441950,-151.0,0.0002935,7]
[339362378,1727477441959,-247.737851,0.0002935,7]
[339362379,1727477441969,-151.0,0.0002936,7]
[339362380,1727477441978,-288.892776,0.0002936,7]
[339362381,1727477441988,-288.892776,0.0002936,7]
[339362382,1727477441998,-157.412191,0.0002936,7]
[339362383,1727477442008,-151.0,0.0002936,7]
[339362384,1727477442019,-157.412191,0.0002936,7]
[339362385,1727477442030,-269.300908,0.00029361,7]
[339362386,1727477442041,-151.0,0.00029361,7]
[339362387,1727477442051,-259.761342,0.00029361,7]
[339362388,1727477442061,-151.0,0.00029361,7]
[339362389,1727477442071,-154.453692,0.00029361,7]
[339362390,1727477442080,-288.892776,0.00029361,7]
[339362391,1727477442090,-288.892776,0.00029361,7]
[339362392,1727477442100,-288.892776,0.00029361,7]
[339362393,1727477442110,-288.892776,0.00029361,7]
[339362394,1727477442119,-151.0,0.00029361,7]
[339362395,1727477442141,-151.0,0.00029361,7]
[339362396,1727477442152,-151.0,0.0002937,7]
[339362397,1727477442163,-151.0,0.0002937,7]
[339362398,1727477442172,-151.0,0.0002937,7]
[339362399,1727477442183,-288.892776,0.0002937,7]
[339362400,1727477442193,-288.892776,0.0002937,7]
[339362401,1727477442202,-151.0,0.0002937,7]